Cogmind - Beta 13 @@@ ROGUE MODE // 2024.04.06 @ 21:49:42 Player: HEQ Result: Destroyed by G-47 Trooper with Particle Gun Performance ------------- Evolutions (2) 1000 Regions Visited (5) 1000 Robots Destroyed (4) 20 Value Destroyed (67) 67 Prototype IDs (0) 0 Alien Tech Used (0) 0 Bonus (0) 0 TOTAL SCORE: 2087 Bonus ------- None Cogmind --------- Core Integrity 0/550 Matter 18/400 Energy 273/275 System Corruption 1% Temperature Cool (10) Movement Treading (170) Location -8/Materials Parts ------- > --- POWER (1) -------- Deuterium Engine > --- PROPULSION (4) --- Armored Treads > --- UTILITY (4) ------ Medium Matter Pod Signal Interpreter > --- WEAPON (2) ------- Remote Datajack > --- INVENTORY (5) ---- Weapon Cycler Peak State ------------ > --- POWER ------------ Deuterium Engine > --- PROPULSION ------- Armored Treads > --- UTILITY ---------- Medium Matter Pod Signal Interpreter Heavy Armor Plating > --- WEAPON ----------- Remote Datajack > --- INVENTORY -------- Weapon Cycler [Rating: 18] Favorites ----------- Power Light Ion Engine Engine Light Ion Engine Propulsion Wheel Treads Armored Treads Wheel Wheel Flight Unit Flight Unit Utility Improved Trap Extractor Device Improved Trap Extractor Storage Medium Matter Pod Processor Signal Interpreter Protection Layered Light Armor Plating Weapon Mining Laser Special Weapon Mining Laser Build | -11 -10 -10 -10 -9 -8 ------- Run | Yrd Mat Min Exi Min Mat Slots Evolved 4 | . . . . . 4 Power . | . . . . . . Propulsion 2 | . . . . . 2 Utility 2 | . . . . . 2 Weapon . | . . . . . . Parts Attached 24 | . . . 3 11 10 Power 7 | . . . 1 5 1 Engine 7 | . . . 1 5 1 Core . | . . . . . . Reactor . | . . . . . . Propulsion 4 | . . . . 1 3 Treads 1 | . . . . . 1 Leg . | . . . . . . Wheel 1 | . . . . 1 . Hover . | . . . . . . Flight 2 | . . . . . 2 Utility 6 | . . . . 2 4 Device 1 | . . . . . 1 Storage 1 | . . . . . 1 Processor 2 | . . . . 1 1 Hackware . | . . . . . . Protection 2 | . . . . 1 1 Artifact . | . . . . . . Weapon 7 | . . . 2 3 2 Energy Gun . | . . . . . . Energy Cannon . | . . . . . . Ballistic Gun . | . . . . . . Ballistic Cannon . | . . . . . . Launcher . | . . . . . . Special Weapon 7 | . . . 2 3 2 Impact Weapon . | . . . . . . Slashing Weapon . | . . . . . . Piercing Weapon . | . . . . . . Special Melee Weapon . | . . . . . . Unidentified Prototypes . | . . . . . . Parts Lost 9 | . . . . 3 6 Power 1 | . . . . . 1 Propulsion 2 | . . . . . 2 Utility 3 | . . . . 1 2 Weapon 3 | . . . . 2 1 Highest Loss Streak 3 | . . . . 3 3 To Critical Strikes . | . . . . . . Average Slot Usage (%) 26 | . . . 31 26 33 Engine 2 | . . . 3 2 4 Wheel 1 | . . . . . 3 Device 1 | . . . . . 7 Protection 1 | . . . . . 6 Special Weapon 16 | . . . 28 22 1 Naked Turns 101 | . 68 27 . 6 . Heaviest Build 29 | . . . 2 7 29 Greatest Support 20 | 3 3 3 3 10 20 Greatest Overweight (x) 2 | . . . . 1 2 Average Overweight (x) . | . . . . . . Largest Inventory Capacity 5 | 5 5 5 5 5 5 Average Capacity 5 | 5 5 5 5 5 5 Most Carried 5 | . 4 4 3 5 5 Average Carried 2 | . 1 4 1 2 3 Final Capacity 5 | 5 5 5 5 5 5 Final Carried 5 | . 4 4 2 5 1 Class Distribution -------------------- 100% | Mutant Dominant Class ---------------- Mutant | -10/Materials Mutant | -10/Mines Mutant | -10/Exiles Mutant | -9/Mines Mutant | -8/Materials Resources | -11 -10 -10 -10 -9 -8 ----------- Run | Yrd Mat Min Exi Min Mat Matter Collected 68 | . . . . 48 20 Remotely . | . . . . . . Salvage Created 23 | . . . . 3 20 Parts 3 | . . . . . 3 Haulers Intercepted . | . . . . . . Recyclers Shooed . | . . . . . . Parts Field Recycled . | . . . . . . Retrieved Matter . | . . . . . . Parts Self-Destructed . | . . . . . . Prevented . | . . . . . . Kills | -11 -10 -10 -10 -9 -8 ------- Run | Yrd Mat Min Exi Min Mat Combat Hostiles Destroyed 2 | . . . . 1 1 Melee 1 | . . . . . 1 Cannons 1 | . . . . 1 . Classes Destroyed 3 | . . . . 2 1 Builder 2 | . . . . 2 . Swarmer 1 | . . . . . 1 Grunt 1 | . . . . 1 . Best Kill Streak 2 | . . . . 2 1 Combat Bots Only 1 | . . . . 1 1 Max Kills in Single Turn 1 | . . . . 1 1 Gunslinging . | . . . . . . Exploded . | . . . . . . Melee 1 | . . . . . 1 Uniques/NPCs Destroyed . | . . . . . . Combat | -11 -10 -10 -10 -9 -8 -------- Run | Yrd Mat Min Exi Min Mat Hostile Shots Fired 249 | . . 2 . 36 211 Missed 70 | . . 2 . 9 59 Damage Taken 1895 | . . . . 370 1525 Core 730 | . . . . 176 554 Absorbed by Shields . | . . . . . . Core Remaining (%) 64 | 100 . . . 29 . Volleys Fired 19 | . . . 1 16 2 Largest 2 | . . . 2 2 1 Hottest 200 | . . . 200 200 100 Shots Fired 22 | . . . 2 18 2 Gun . | . . . . . . Cannon . | . . . . . . Launcher . | . . . . . . Special 22 | . . . 2 18 2 Kinetic . | . . . . . . Thermal 22 | . . . 2 18 2 Explosive . | . . . . . . Electromagnetic . | . . . . . . Robot Hit Streak 4 | . . . . 4 1 Robot Miss Streak 2 | . . . . 2 1 Penetration Max . | . . . . . . Secondary Targets . | . . . . . . Shots Hit Robots 12 | . . . . 11 1 Core Hits 10 | . . . . 5 5 Critical Kills . | . . . . . . Critical Parts Destroyed . | . . . . . . Critical Strikes . | . . . . . . Melee Attacks . | . . . . . . Impact . | . . . . . . Slashing . | . . . . . . Piercing . | . . . . . . Sneak Attacks . | . . . . . . Combat Hostiles . | . . . . . . Follow-up Attacks . | . . . . . . Damage Inflicted 283 | . . . . 226 57 Guns . | . . . . . . Cannons . | . . . . . . Explosions . | . . . . . . Melee . | . . . . . . Ramming 33 | . . . . . 33 Kinetic . | . . . . . . Thermal 250 | . . . . 226 24 Explosive . | . . . . . . Electromagnetic . | . . . . . . Impact . | . . . . . . Slashing . | . . . . . . Piercing . | . . . . . . Highest Corruption 1 | . . . . . 1 Average Corruption 1 | . . . . . 1 Corruption Purged . | . . . . . . Corruption Blocked . | . . . . . . Overload Shots . | . . . . . . Overflow Damage . | . . . . . . Projectiles . | . . . . . . Explosions . | . . . . . . Melee . | . . . . . . Knockbacks . | . . . . . . Impact . | . . . . . . Kinetic . | . . . . . . Secondary . | . . . . . . Self-Inflicted Damage 13 | . . . . . 13 Shots . | . . . . . . Rammed 16 | . . . . . 16 Targets Rammed 16 | . . . . . 16 Kicked . | . . . . . . Crushed . | . . . . . . Highest Temperature 141 | . . . 56 141 32 Average Temperature 46 | . . . 29 53 15 Received Heat Transfer 519 | . . . . 231 288 Siege Activations . | . . . . . . Robots Corrupted . | . . . . . . Combat Hostiles . | . . . . . . Parts Fried . | . . . . . . Impact Corruptions . | . . . . . . Robots Melted . | . . . . . . Combat Hostiles . | . . . . . . Parts Melted . | . . . . . . Heat Transferred 910 | . . . . 860 50 Parts Sabotaged . | . . . . . . Parts Stolen . | . . . . . . Parts Stripped . | . . . . . . Power Chain Reactions . | . . . . . . Alert | -11 -10 -10 -10 -9 -8 ------- Run | Yrd Mat Min Exi Min Mat Peak Influence 135 | . 5 16 . 70 135 Initial 17 | . . 1 . . 17 Average 37 | . 4 15 . 38 49 Maximum Alert Level . | . . . . . . Low Security (%) 100 | 100 100 100 . 100 100 Level 1 . | . . . . . . Level 2 . | . . . . . . Level 3 . | . . . . . . Level 4 . | . . . . . . Level 5 . | . . . . . . High Security . | . . . . . . Max Security . | . . . . . . Squads Dispatched . | . . . . . . Investigation . | . . . . . . Extermination . | . . . . . . Reinforcement . | . . . . . . Assault . | . . . . . . Garrison . | . . . . . . Intercept . | . . . . . . Searches Triggered . | . . . . . . Construction Impeded . | . . . . . . Haulers Reinforced . | . . . . . . Active Scanning Responses . | . . . . . . Cargo Convoy Interrupts . | . . . . . . Stealth | -11 -10 -10 -10 -9 -8 --------- Run | Yrd Mat Min Exi Min Mat Distress Signals 1 | . 1 . . . . Communications Jammed . | . . . . . . Distress Signals . | . . . . . . Times Spotted 27 | . . 2 . 9 16 Peak Tracking Total 11 | . . 2 . 3 11 Tactical Retreats 8 | . . . . 4 4 Traps | -11 -10 -10 -10 -9 -8 ------- Run | Yrd Mat Min Exi Min Mat Traps Triggered . | . . . . . . Indirectly . | . . . . . . Trap Hack Attempts . | . . . . . . Triggered . | . . . . . . Disarmed . | . . . . . . Reprogrammed . | . . . . . . Reused . | . . . . . . Traps Extracted . | . . . . . . Installed . | . . . . . . Triggered . | . . . . . . Machines | -11 -10 -10 -10 -9 -8 ---------- Run | Yrd Mat Min Exi Min Mat Machines Disabled . | . . . . . . Max in Single Turn . | . . . . . . Machines Repaired . | . . . . . . Machines Dismantled . | . . . . . . Machines Sabotaged . | . . . . . . Overloaded Fab Kills . | . . . . . . Hacking | -11 -10 -10 -10 -9 -8 --------- Run | Yrd Mat Min Exi Min Mat Machines Accessed 2 | . 1 . . 1 . Terminals 1 | . 1 . . . . Fabricators . | . . . . . . Repair Stations . | . . . . . . Recycling Units . | . . . . . . Scanalyzers . | . . . . . . Garrison Access . | . . . . . . Total Hacks 3 | . 2 . . 1 . Successful 3 | . 2 . . 1 . Failed . | . . . . . . Catastrophic . | . . . . . . Database Lockouts . | . . . . . . Manual . | . . . . . . Terminals 2 | . 2 . . . . Fabricators . | . . . . . . Repair Stations . | . . . . . . Recycling Units . | . . . . . . Scanalyzers . | . . . . . . Garrison Access . | . . . . . . Terminal Hacks 3 | . 2 . . 1 . Record 1 | . 1 . . . . Open Door 1 | . . . . 1 . Zone Layout 1 | . 1 . . . . Fabricator Hacks . | . . . . . . Repair Station Hacks . | . . . . . . Recycling Unit Hacks . | . . . . . . Scanalyzer . | . . . . . . Garrison Access Hacks . | . . . . . . Unauthorized Hacks . | . . . . . . Terminals . | . . . . . . Fabricators . | . . . . . . Repair Stations . | . . . . . . Recycling Units . | . . . . . . Scanalyzers . | . . . . . . Garrison Access . | . . . . . . Data Cores Recovered . | . . . . . . Used . | . . . . . . Hacking Detections . | . . . . . . Full Trace Events . | . . . . . . Feedback Events . | . . . . . . Feedback Blocked . | . . . . . . Robot Schematics Acquired . | . . . . . . Robots Built . | . . . . . . Authchips . | . . . . . . Time . | . . . . . . Total Robot Build Rating . | . . . . . . Part Schematics Acquired . | . . . . . . Parts Built . | . . . . . . Authchips . | . . . . . . Time . | . . . . . . Total Part Build Rating . | . . . . . . Parts Repaired . | . . . . . . Time . | . . . . . . Parts Recycled . | . . . . . . Recycled Matter . | . . . . . . Retrieved Matter . | . . . . . . Retrieved Components . | . . . . . . Parts Scanalyzed . | . . . . . . Part Schematics Acquired . | . . . . . . Parts Damaged . | . . . . . . Bothacking | -11 -10 -10 -10 -9 -8 ------------ Run | Yrd Mat Min Exi Min Mat Used RIF Installer . | . . . . . . Robots Hacked . | . . . . . . Non-combat . | . . . . . . Combat . | . . . . . . Robot Hacks Applied . | . . . . . . Relay Couplers Released . | . . . . . . Fabnet Peak Effective % . | . . . . . . Robots Rewired . | . . . . . . Allies Hacked . | . . . . . . Hacks Repelled . | . . . . . . Allies | -11 -10 -10 -10 -9 -8 -------- Run | Yrd Mat Min Exi Min Mat Total Allies . | . . . . . . Largest Group . | . . . . . . Highest-Rated Group . | . . . . . . Highest-Rated Ally . | . . . . . . Total Orders . | . . . . . . Ally Attacks . | . . . . . . Total Damage . | . . . . . . Kills . | . . . . . . Allies Corrupted . | . . . . . . Allies Melted . | . . . . . . Intel | -11 -10 -10 -10 -9 -8 ------- Run | Yrd Mat Min Exi Min Mat Robot Analysis Total . | . . . . . . Derelict Logs Recovered 1 | . . . . 1 . Drone Launches . | . . . . . . Drone Recoveries . | . . . . . . Exploration | -11 -10 -10 -10 -9 -8 ------------- Run | Yrd Mat Min Exi Min Mat Turns Passed 998 | 9 68 27 42 639 213 Spaces Moved 955 | 18 128 54 59 500 196 Core 746 | 18 128 54 59 470 17 Treads 26 | . . . . . 26 Legs . | . . . . . . Wheels 109 | . . . . 30 79 Hover . | . . . . . . Flight 74 | . . . . . 74 Fastest Speed 40 | 50 50 50 50 50 40 Average Speed 59 | 50 50 50 50 54 85 Slowest Speed 250 | 50 50 50 50 100 250 Overloaded Moves . | . . . . . . Propulsion Burnouts . | . . . . . . Robots Hopped . | . . . . . . Cave-ins Triggered . | . . . . . . Exploration Rate (%) 28 | 3 32 22 8 82 25 Regions Visited 5 Branch Regions 3 Pre-discovered Areas . | . . . . . . Known Exits Taken . | . . . . . . Unknown Exits Taken 5 | 1 1 1 1 1 . Scrap Searched 1 | . . . . 1 . Spaces Dug 2 | . . . 2 . . Terrain Destroyed 3 | . . . 2 . 1 Melee . | . . . . . . Projectile 3 | . . . 2 . 1 AOE . | . . . . . . Terrain Rammed . | . . . . . . Walls Destroyed . | . . . . . . Machines Disabled . | . . . . . . Actions | -11 -10 -10 -10 -9 -8 --------- Run | Yrd Mat Min Exi Min Mat Total 1322 | 17 131 53 65 825 231 Wait 289 | . . . 2 286 1 Move 950 | 17 127 53 58 499 196 Hop . | . . . . . . Pick Up 15 | . 4 . . 6 5 Fast Attach 2 | . . . . 2 . Attach 21 | . . . 3 9 9 Detach 7 | . . . 1 6 . Swap 1 | . . . . . 1 Drop 2 | . . . . 1 1 Fire 19 | . . . 1 16 2 Melee . | . . . . . . Ram 16 | . . . . . 16 Kick . | . . . . . . Crush . | . . . . . . Escape Stasis . | . . . . . . Rewire . | . . . . . . Trap . | . . . . . . Miscellaneous . | . . . . . . Route ------- -11/Scrapyard -10/Materials -10/Mines -10/Exiles -9/Mines -8/Materials (discovered 1 exit: Fac) History --------- Turn | Location | Event 5 | -11/Scrapyard | Discovered new exit (range 12) 10 | -11/Scrapyard | Entered Materials 37 | -10/Materials | Discovered new exit (range 12) 78 | -10/Materials | Entered Mines 103 | -10/Mines | Deemed a non-threat by the Exiles lab entrance 103 | -10/Mines | Discovered new exit (range 5) 105 | -10/Mines | Entered Exiles 141 | -10/Exiles | Discovered new exit (range 14) 147 | -10/Exiles | Entered Mines 238 | -9/Mines | Learned 2 Materials zone layouts 309 | -9/Mines | Build established: Mutant 591 | -9/Mines | A weapon hastily lodged in a ceiling crevice suddenly fell to the ground 682 | -9/Mines | Core integrity fell below 50% 710 | -9/Mines | Lost 3 parts (1u2w) 734 | -9/Mines | Met a Derelict who couldn't figure out how to use a Trap Extractor 778 | -9/Mines | Discovered new exit (range 11) 786 | -9/Mines | Entered Materials 786 | -8/Materials | Evolved 4 slots: Propulsion x2, Utility x2 787 | -8/Materials | Identified exit to Factory 895 | -8/Materials | Lost 3 parts (1p1n1w) 896 | -8/Materials | Core integrity fell below 50% 938 | -8/Materials | Core integrity fell below 20% 999 | -8/Materials | Destroyed by G-47 Trooper with Particle Gun Last Messages --------------- 00961_ Acquired Hvy. Armor Plating. 00961_ S-10 Pest destroyed. 00962_ Dropped Broken Imp. Trap Extractor. 00964_ Critical hit (Burn: +37). 00971_ Critical hit (Destroy). 00973_ S-10 Pest destroyed. 00973_ Slug penetrates Wall. 00973_ S-10 Pest destroyed. 00974_ K-01 Serf collects debris. 00974_ Critical hit (Burn: +37). 00976_ Slug penetrates Wall. 00981_ K-01 Serf collects debris. 00985_ T-07 Excavator is excavating. 00987_ U-05 Engineer lays Concrete. 00989_ T-07 Excavator is excavating. 00989_ U-05 Engineer lays Concrete. 00989_ K-01 Serf collects debris. 00990_ U-05 Engineer lays Concrete. 00991_ Penetrated by Slug. 00994_ Hvy. Armor Plating destroyed. Map ----- +----------------------------------------------------+ | ???????????????????????????????????# # """" #? | | ???????????????????????????????????# # """" #? | | ???????????????????????????????????# # """" #? | | ???????????????????????????????????# # #? | | ???????????????????????????????????# ##########? | | ???????????????????????????????????# T#????????? | | ???????????????????????????????????# ########### | | ???????????????????????????????????# # # | | ???????????????????????????????????# # """ # | | ??????????????????????????#+#??????# # """"" # | | ?????????????????????????# ] # # """"" # | | ?????????????????????????# + + """"" # | | ?????????????????????????? """"""" # # """ # | | ?????????????????????????????""""??# # # | | ??????????????????????????????"????# # # | | ???????????????????????????????????# ########### | | ???????????????????????????????????# # * | | ???????????????????????????????????# # [""" | | ???????????????????????????????????# / "T" "" | | ??????????????????????#####????????# # """ "" | | ??????????????????????# ### # | | ??????????????????????# #######"T"# | | ??????????????????????# ####/######?##### | | ??????????????????????# ## ??# #?????? | | ??????????????????????# r######## """ """ #?????? | | ??????????????????????# @#??????# """ """ #?????? | | ??????????????????????# #??????# """ """ #?????? | | ??????????????????????# ######## #?????? | | ??????????????????????# # # = #?????? | | ??????????????????????# g# # #?????? | | ??????????????????????# # #?????? | | ??????????????????????# g # ########+#########???? | | ??????????????????????# ###??????# ## == !#???? | | ?????????????????#######h#######???# ## == #???? | | ?????????????????# =%= #???# ##! = #???? | | ?????????????????# * == #???# ## /##### | | ?????????????????# = #???# #####/### | | ?????????????????# ! Y #???# # """ | | ?????????????????# [* #???#] # """ | | ?????????????????# =%= !#???# """ + """ | | ?????????????????# ########+######?# "T" # | | ?????????????????##????# #?# # ! | | ???????????????????????# """ #?# ##### | | ???????????????????????# """"" #?# #???# | | ???????????????????????# """"" ]#?# """" #???# | | ???????????????????????# """"" #?# """" ##### | | ???????????????????????# """ #?# """" # | | ???????????????????????# #?# # | | ???????????????????????# #?# # | | ???????????????????????#####+#####?# """" # | +----------------------------------------------------+ Best States ------------- Heat Dissipation 31 Energy Generation 14 Energy Capacity 275 Matter Stores 100 Matter Capacity 400 Sight Range 16 Terrain Scan Density 10 Armor Coverage 600 Evasion (%) 62 Targeting Accuracy 5 Recoil Reduction 1 Trap Extractor Capacity 6 Item Schematics ----------------- None Robot Schematics ------------------ None Fabricated ------------ Nothing Alien Tech Used ----------------- None Achievements -------------- Fist Fight Challenges ------------ None Game ------ Seed TripodSystemArchive Manual? 0 Play Time 00:26:59 Cumulative 10.9 hours Start 2024.04.06 @ 21:21:55 End 2024.04.06 @ 21:49:42 Sessions 1 Manual Loads 0 Difficulty Rogue Special Mode None Game No. 11 Rogue 8 Adventurer 0 Explorer 3 Win Type - Total 0 Types 0/0/0/0/0/0/0/0/0 Lore% 9 Gallery% 20 Achievement% 13 Wizard Run 0 Options --------- Layout 1 ASCII 0 Keyboard 0 Movement Mouse Keybinds 0 Fullscreen 1 Font 20/SmallcapsGlow Map View 61x41 Zoom Use 0% Tactical HUD 1 Map Filters NONE Filters NONE Steam 0 RUN: 3f3a1b6b-e812-4a8b-b5f4-2784fabaf725